[Event "8. Arber-Schachopen 2019"]
[Site "Bodenmais"]
[Date "2019.07.29"]
[Round "3.25"]
[White "Palmi, Herbert"]
[Black "Mittermaier, Johann"]
[Result "1-0"]
[ECO "A13"]
[WhiteElo "2056"]
[BlackElo "1842"]
[Annotator "NA"]
[PlyCount "83"]
[EventDate "2019.07.27"]
[EventCountry "GER"]
[SourceTitle "playchess.com"]
[Source "ChessBase"]
[SourceQuality "1"]
[TimeControl "40/5400+30:1800+30"]

1. c4 {[%emt 0:00:00]} e6 {[%emt 0:01:04]} 2. g3 {[%emt 0:02:26]} d5 {[%emt 0:00:36]} 3. Bg2 {[%emt 0:00:12]} Nf6 {[%emt 0:00:40]} 4. Nf3 {[%emt 0:00:32]} c5 {[%emt 0:01:40]} 5. cxd5 {[%emt 0:01:08]} Nxd5 {[%emt 0:03:58]} 6. Nc3 {[%emt 0:00:23]} Nxc3 {[%emt 0:03:32]} 7. bxc3 {[%emt 0:00:07]} Nc6 {[%emt 0:00:23]} 8. Rb1 {[%emt 0:00:18]} Be7 {[%emt 0:00:56]} 9. O-O {[%emt 0:00:06]} O-O {[%emt 0:01:13]} 10. d4 Qa5 {[%emt 0:06:46]} 11. Qb3 {[%emt 0:04:21]} Qa6 12. e3 c4 {[%emt 0:13:35]} 13. Qc2 {[%emt 0:06:08]} Rb8 {[%emt 0:03:57]} 14. e4 Bd6 {[%emt 0:06:42]} 15. e5 {[%emt 0:02:48]} Be7 {[%emt 0:00:11]} 16. Ng5 {[%emt 0:00:12]} Bxg5 {[%emt 0:04:37]} 17. Bxg5 {[%emt 0:00:06]} h6 {[%emt 0:00:23]} 18. Bd2 {[%emt 0:02:37]} Ne7 {[%emt 0:00:56]} 19. Rfe1 {[%emt 0:01:44]} Bd7 {[%emt 0:00:24]} 20. Re4 {[%emt 0:02:04]} Bc6 {[%emt 0:00:17]} 21. Rh4 {[%emt 0:00:30]} Bxg2 {[%emt 0:01:31]} 22. Kxg2 {[%emt 0:00:06]} Qc6+ {[%emt 0:00:22]} 23. f3 {[%emt 0:02:28]} Ng6 {[%emt 0:04:04]} 24. Rg4 {[%emt 0:01:23]} h5 {[%emt 0:00:24]} 25. Rg5 {[%emt 0:00:23]} h4 {[%emt 0:01:05]} 26. Rh5 {[%emt 0:01:17]} f5 27. Bc1 {[%emt 0:13:12]} Kf7 {[%emt 0:06:17]} 28. Ba3 {[%emt 0:00:59]} Rh8 {[%emt 0:00:37]} 29. Rxh8 {[%emt 0:00:12]} Rxh8 {[%emt 0:00:07]} 30. Qb2 b6 {[%emt 0:04:13]} 31. Qb5 {[%emt 0:03:35]} Qxb5 {[%emt 0:01:18]} 32. Rxb5 {[%emt 0:00:07]} hxg3 {[%emt 0:00:09]} 33. hxg3 {[%emt 0:01:54]} Ne7 {[%emt 0:00:40]} 34. Bxe7 {[%emt 0:01:44]} Kxe7 {[%emt 0:00:07]} 35. Rb4 {[%emt 0:00:28]} Rc8 {[%emt 0:00:15]} 36. a4 Kd7 {[%emt 0:02:02]} 37. Kf2 {[%emt 0:00:30]} Rc6 {[%emt 0:00:59]} 38. Ke3 {[%emt 0:01:34]} g5 {[%emt 0:00:55]} 39. g4 {[%emt 0:00:45]} f4+ {[%emt 0:06:25]} 40. Ke4 {[%emt 0:00:45]} a6 {[%emt 0:01:32]} 41. Rb1 {[%emt 0:30:15]} Rc8 {[%emt 0:30:30]} 42. Rxb6 {[%emt 0:00:15]} 1-0

[Event "8. Arber-Schachopen 2019"]
[Site "Bodenmais"]
[Date "2019.07.29"]
[Round "3.26"]
[White "Bergmann, Reiner"]
[Black "Kolb, Wolfgang"]
[Result "0-1"]
[ECO "B01"]
[WhiteElo "1823"]
[BlackElo "2099"]
[Annotator "NA"]
[PlyCount "122"]
[EventDate "2019.07.27"]
[EventCountry "GER"]
[SourceTitle "playchess.com"]
[Source "ChessBase"]
[SourceQuality "1"]
[TimeControl "40/5400+30:1800+30"]

1. e4 {[%emt 0:00:00]} d5 {[%emt 0:00:00]} 2. exd5 {[%emt 0:00:00]} Qxd5 {[%emt 0:00:00]} 3. Nc3 {[%emt 0:00:00]} Qd6 {[%emt 0:00:00]} 4. b3 {[%emt 0:04:00]} Nf6 {[%emt 0:01:03]} 5. Bb2 {[%emt 0:01:22]} a6 {[%emt 0:00:45]} 6. h3 {[%emt 0:01:41]} Nc6 {[%emt 0:11:51]} 7. Nf3 {[%emt 0:02:23]} Bf5 {[%emt 0:02:49]} 8. d3 {[%emt 0:12:24]} h6 {[%emt 0:08:22]} 9. Qd2 {[%emt 0:02:19]} e6 {[%emt 0:07:11]} 10. O-O-O {[%emt 0:03:07]} O-O-O {[%emt 0:01:10]} 11. g4 {[%emt 0:01:21]} Bh7 {[%emt 0:10:58]} 12. Bg2 {[%emt 0:02:13]} Nd4 {[%emt 0:11:55]} 13. Nxd4 {[%emt 0:05:55]} Qxd4 {[%emt 0:00:03]} 14. Nd5 {[%emt 0:00:35]} Ba3 {[%emt 0:00:35]} 15. c3 {[%emt 0:05:24]} Bxb2+ {[%emt 0:00:11]} 16. Kxb2 {[%emt 0:00:02]} Qxd3 {[%emt 0:03:57]} 17. Qxd3 {[%emt 0:12:14]} Bxd3 {[%emt 0:00:02]} 18. Rxd3 {[%emt 0:00:10]} Nxd5 {[%emt 0:00:25]} 19. Rhd1 {[%emt 0:00:14]} c6 {[%emt 0:01:11]} 20. Bxd5 {[%emt 0:02:40]} Rxd5 {[%emt 0:00:33]} 21. Rxd5 {[%emt 0:00:43]} exd5 {[%emt 0:01:10]} 22. Kc2 {[%emt 0:02:13]} Re8 {[%emt 0:00:31]} 23. Kd3 {[%emt 0:00:32]} Kc7 {[%emt 0:07:34]} 24. h4 {[%emt 0:03:45]} g6 {[%emt 0:04:48]} 25. f3 {[%emt 0:03:49]} c5 {[%emt 0:09:06]} 26. a4 {[%emt 0:01:27]} b6 {[%emt 0:02:01]} 27. Rf1 {[%emt 0:03:26]} Kd6 {[%emt 0:04:27]} 28. Rd1 {[%emt 0:03:03]} Re5 {[%emt 0:01:16]} 29. Rf1 {[%emt 0:04:16]} Re7 {[%emt 0:00:55]} 30. Rd1 {[%emt 0:00:29]} Rc7 {[%emt 0:04:40]} 31. Rb1 {[%emt 0:00:46]} Ke5 {[%emt 0:00:42]} 32. Re1+ {[%emt 0:09:50]} Kf4 {[%emt 0:00:14]} 33. Re3 {[%emt 0:00:47]} Rd7 {[%emt 0:02:19]} 34. Ke2 {[%emt 0:00:58]} Kg3 {[%emt 0:00:48]} 35. h5 {[%emt 0:00:16]} gxh5 {[%emt 0:00:14]} 36. gxh5 {[%emt 0:00:02]} Rd6 {[%emt 0:01:06]} 37. f4+ {[%emt 0:03:23]} Kxf4 {[%emt 0:00:09]} 38. Rf3+ {[%emt 0:00:02]} Kg4 {[%emt 0:00:17]} 39. Rxf7 {[%emt 0:00:06]} Kxh5 {[%emt 0:00:10]} 40. a5 {[%emt 0:01:02]} bxa5 {[%emt 0:02:43]} 41. Rc7 {[%emt 0:30:10]} Kg4 {[%emt 0:02:09]} 42. Rxc5 {[%emt 0:00:00]} h5 {[%emt 0:01:33]} 43. Kf2 {[%emt 0:00:00]} h4 {[%emt 0:06:17]} 44. Rxa5 {[%emt 0:00:00]} Rf6+ {[%emt 0:08:56]} 45. Kg1 {[%emt 0:00:00]} Rc6 {[%emt 0:01:09]} 46. c4 {[%emt 0:00:00]} dxc4 {[%emt 0:01:13]} 47. bxc4 {[%emt 0:00:00]} Kf3 {[%emt 0:01:31]} 48. Kh2 {[%emt 0:00:00]} Ke3 {[%emt 0:00:23]} 49. Kh3 {[%emt 0:00:00]} Kd3 {[%emt 0:00:58]} 50. c5 {[%emt 0:00:00]} Kc4 {[%emt 0:00:22]} 51. Kxh4 {[%emt 0:00:00]} Kb4 {[%emt 0:00:09]} 52. Ra1 {[%emt 0:00:00]} a5 {[%emt 0:00:37]} 53. Kg3 {[%emt 0:00:00]} Rxc5 {[%emt 0:00:13]} 54. Kf3 {[%emt 0:00:00]} a4 {[%emt 0:03:01]} 55. Ke3 {[%emt 0:00:00]} Rd5 {[%emt 0:02:28]} 56. Rb1+ {[%emt 0:00:00]} Kc3 {[%emt 0:00:24]} 57. Rc1+ {[%emt 0:00:00]} Kb2 {[%emt 0:00:26]} 58. Rc8 {[%emt 0:00:00]} a3 {[%emt 0:02:56]} 59. Rb8+ {[%emt 0:00:00]} Kc3 {[%emt 0:00:35]} 60. Rc8+ {[%emt 0:00:45]} Kb4 {[%emt 0:00:45]} 61. Ke4 {[%emt 0:00:37]} Ra5 {[%emt 0:02:05]} 0-1

[Event "8. Arber-Schachopen 2019"]
[Site "Bodenmais"]
[Date "2019.07.30"]
[Round "4.2"]
[White "Poetz, Florian"]
[Black "Mirzoev, Emil"]
[Result "1/2-1/2"]
[ECO "B60"]
[WhiteElo "2389"]
[BlackElo "2493"]
[Annotator "ChessBase"]
[PlyCount "36"]
[EventDate "2019.07.27"]
[EventCountry "GER"]
[SourceTitle "playchess.com"]
[Source "ChessBase"]
[SourceQuality "1"]
[TimeControl "40/5400+30:1800+30"]

1. e4 {[%emt 0:00:00]} c5 {[%emt 0:00:00]} 2. Nf3 {[%emt 0:00:00]} Nc6 {[%emt 0:00:00]} 3. Nc3 {[%emt 0:01:05]} d6 {[%emt 0:00:48]} 4. d4 {[%emt 0:00:23]} cxd4 {[%emt 0:00:09]} 5. Nxd4 {[%emt 0:00:04]} Nf6 {[%emt 0:00:06]} 6. Bg5 {[%emt 0:00:33]} Bd7 {[%emt 0:01:28]} 7. Nb3 {[%emt 0:02:11]} h6 {[%emt 0:02:35]} 8. Bxf6 {[%emt 0:01:24]} gxf6 {[%emt 0:00:26]} 9. Qh5 {[%emt 0:03:05]} Qc8 {[%emt 0:05:36]} 10. f4 {[%emt 0:11:17]} f5 {[%emt 0:00:28]} 11. Bc4 {[%emt 0:10:02]} Nd8 {[%emt 0:00:43]} 12. Bd3 {[%emt 0:03:37]} Bg7 {[%emt 0:07:36]} 13. exf5 {[%emt 0:09:57]} Bxc3+ {[%emt 0:01:36]} 14. bxc3 {[%emt 0:00:06]} Qxc3+ {[%emt 0:00:05]} 15. Kf2 {[%emt 0:00:21]} Nc6 {[%emt 0:01:26]} 16. Rhe1 {[%emt 0:00:46]} O-O-O {[%emt 0:01:26]} 17. Kg1 {[%emt 0:06:32]} Qf6 {[%emt 0:02:17]} 18. Be4 {[%emt 0:05:53]} e6 {[%emt 0:20:00]} 1/2-1/2

[Event "8. Arber-Schachopen 2019"]
[Site "Bodenmais"]
[Date "2019.07.30"]
[Round "4.3"]
[White "Pap, Misa"]
[Black "Hausner, Ivan"]
[Result "0-1"]
[ECO "B22"]
[WhiteElo "2461"]
[BlackElo "2370"]
[Annotator "ChessBase"]
[PlyCount "94"]
[EventDate "2019.07.27"]
[EventCountry "GER"]
[SourceTitle "playchess.com"]
[Source "ChessBase"]
[SourceQuality "1"]
[TimeControl "40/5400+30:1800+30"]

1. e4 {[%emt 0:01:47]} c5 {[%emt 0:00:00]} 2. c3 {[%emt 0:00:15]} d5 {[%emt 0:00:00]} 3. exd5 {[%emt 0:00:16]} Qxd5 {[%emt 0:00:00]} 4. Nf3 {[%emt 0:00:55]} Nf6 {[%emt 0:00:00]} 5. Na3 {[%emt 0:00:13]} e6 {[%emt 0:00:35]} 6. Bc4 {[%emt 0:00:14]} Qd8 {[%emt 0:00:07]} 7. O-O {[%emt 0:00:16]} Be7 {[%emt 0:00:07]} 8. Nc2 {[%emt 0:01:59]} Nc6 {[%emt 0:01:15]} 9. Qe2 {[%emt 0:09:28]} O-O {[%emt 0:00:16]} 10. Rd1 {[%emt 0:00:33]} b6 {[%emt 0:03:11]} 11. d4 {[%emt 0:00:05]} Qc7 {[%emt 0:00:10]} 12. dxc5 {[%emt 0:04:13]} bxc5 {[%emt 0:00:16]} 13. Na3 {[%emt 0:08:19]} Bb7 {[%emt 0:02:40]} 14. Ba6 {[%emt 0:03:58]} Rad8 {[%emt 0:02:58]} 15. Rxd8 {[%emt 0:09:26]} Rxd8 {[%emt 0:00:13]} 16. Bxb7 {[%emt 0:00:04]} Qxb7 {[%emt 0:00:06]} 17. Bf4 {[%emt 0:00:56]} h6 {[%emt 0:02:05]} 18. Ne5 {[%emt 0:07:13]} Nd5 {[%emt 0:07:36]} 19. Qb5 {[%emt 0:08:05]} Qxb5 {[%emt 0:03:16]} 20. Nxb5 {[%emt 0:00:09]} Nxe5 {[%emt 0:03:05]} 21. Bxe5 {[%emt 0:00:05]} Rd7 {[%emt 0:00:55]} 22. Rd1 {[%emt 0:11:08]} f6 {[%emt 0:09:01]} 23. Bg3 {[%emt 0:01:56]} Rb7 {[%emt 0:00:05]} 24. c4 {[%emt 0:00:14]} Nb4 {[%emt 0:00:13]} 25. Nc3 {[%emt 0:04:15]} Kf7 {[%emt 0:03:38]} 26. Kf1 {[%emt 0:00:50]} Ke8 {[%emt 0:00:37]} 27. Nb5 {[%emt 0:09:01]} a6 {[%emt 0:08:10]} 28. Nc7+ {[%emt 0:05:20]} Kf7 {[%emt 0:00:45]} 29. a3 {[%emt 0:01:41]} Nc6 {[%emt 0:00:18]} 30. Rd2 {[%emt 0:01:17]} Na5 {[%emt 0:01:42]} 31. Rc2 {[%emt 0:02:22]} Rb6 {[%emt 0:02:10]} 32. f3 {[%emt 0:00:47]} Rc6 {[%emt 0:01:13]} 33. Ke2 {[%emt 0:04:55]} Nb3 {[%emt 0:02:00]} 34. Rc3 {[%emt 0:01:12]} Nd4+ {[%emt 0:00:20]} 35. Kd3 {[%emt 0:00:15]} Bd8 {[%emt 0:00:17]} 36. Nxa6 {[%emt 0:01:19]} Rxa6 {[%emt 0:00:07]} 37. b4 {[%emt 0:00:04]} Nf5 {[%emt 0:01:14]} 38. b5 {[%emt 0:00:21]} Ra8 {[%emt 0:02:15]} 39. Bf2 {[%emt 0:00:09]} Bb6 {[%emt 0:00:07]} 40. Kc2 {[%emt 0:00:25]} e5 {[%emt 0:00:16]} 41. Rd3 {[%emt 0:30:46]} Nd4+ {[%emt 0:30:09]} 42. Kb2 Ra4 {[%emt 0:01:02]} 43. Rc3 {[%emt 0:00:25]} Ke6 {[%emt 0:00:20]} 44. Rc1 {[%emt 0:01:03]} Kd6 {[%emt 0:01:29]} 45. h4 {[%emt 0:00:36]} h5 {[%emt 0:00:15]} 46. Bxd4 {[%emt 0:00:43]} exd4 {[%emt 0:00:27]} 47. Kb3 Ra7 0-1

[Event "8. Arber-Schachopen 2019"]
[Site "Bodenmais"]
[Date "2019.07.30"]
[Round "4.4"]
[White "Hopman, Pieter"]
[Black "Milov, Leonid"]
[Result "0-1"]
[ECO "B48"]
[WhiteElo "2347"]
[BlackElo "2472"]
[Annotator "ChessBase"]
[PlyCount "88"]
[EventDate "2019.07.27"]
[EventCountry "GER"]
[SourceTitle "playchess.com"]
[Source "ChessBase"]
[SourceQuality "1"]
[TimeControl "40/5400+30:1800+30"]

1. e4 {[%emt 0:00:00]} c5 {[%emt 0:00:00]} 2. Nc3 {[%emt 0:00:16]} Nc6 {[%emt 0:00:06]} 3. Nf3 {[%emt 0:01:11]} e6 {[%emt 0:00:10]} 4. d4 {[%emt 0:00:13]} cxd4 {[%emt 0:00:05]} 5. Nxd4 {[%emt 0:00:05]} Qc7 {[%emt 0:00:03]} 6. Be3 {[%emt 0:00:49]} a6 {[%emt 0:00:05]} 7. Qf3 {[%emt 0:00:38]} Nf6 {[%emt 0:00:23]} 8. O-O-O {[%emt 0:00:28]} Be7 {[%emt 0:07:30]} 9. Be2 {[%emt 0:05:01]} O-O {[%emt 0:02:12]} 10. Nxc6 {[%emt 0:01:33]} bxc6 {[%emt 0:12:41]} 11. Qg3 {[%emt 0:06:01]} d6 {[%emt 0:00:35]} 12. h4 Kh8 {[%emt 0:00:58]} 13. h5 {[%emt 0:10:24]} h6 {[%emt 0:00:05]} 14. f3 {[%emt 0:03:30]} Rb8 {[%emt 0:05:46]} 15. b3 {[%emt 0:02:32]} e5 {[%emt 0:21:06]} 16. Bc4 {[%emt 0:06:18]} Qa5 {[%emt 0:01:21]} 17. Qe1 {[%emt 0:05:57]} d5 {[%emt 0:22:16]} 18. exd5 {[%emt 0:00:33]} Bb4 {[%emt 0:00:54]} 19. Bd2 {[%emt 0:04:56]} cxd5 {[%emt 0:01:47]} 20. Bd3 {[%emt 0:12:45]} Re8 {[%emt 0:01:15]} 21. Rh4 {[%emt 0:08:21]} e4 {[%emt 0:07:49]} 22. fxe4 {[%emt 0:00:49]} Bg4 {[%emt 0:06:39]} 23. Rxg4 {[%emt 0:17:38]} Nxg4 {[%emt 0:00:12]} 24. Nxd5 {[%emt 0:04:13]} Bxd2+ {[%emt 0:00:07]} 25. Qxd2 {[%emt 0:00:10]} Qxa2 {[%emt 0:00:12]} 26. Qc3 {[%emt 0:01:50]} Rec8 {[%emt 0:02:26]} 27. Bc4 {[%emt 0:01:29]} Qa3+ {[%emt 0:02:59]} 28. Kb1 {[%emt 0:01:25]} Qc5 {[%emt 0:00:05]} 29. Ka2 {[%emt 0:01:58]} Re8 {[%emt 0:01:09]} 30. Rd4 {[%emt 0:01:53]} a5 {[%emt 0:00:48]} 31. Nf4 {[%emt 0:01:21]} Ne5 {[%emt 0:02:23]} 32. g3 {[%emt 0:00:45]} Rbd8 {[%emt 0:00:33]} 33. Nd5 {[%emt 0:00:42]} Nc6 {[%emt 0:00:13]} 34. Rd2 {[%emt 0:00:30]} Rxe4 {[%emt 0:00:15]} 35. Nf4 {[%emt 0:00:40]} Red4 {[%emt 0:01:43]} 36. Re2 {[%emt 0:00:24]} Nb4+ {[%emt 0:00:33]} 37. Kb2 {[%emt 0:00:13]} Qf5 {[%emt 0:00:05]} 38. Qe3 {[%emt 0:00:34]} Qf6 {[%emt 0:00:37]} 39. c3 {[%emt 0:00:41]} Rd1 {[%emt 0:00:50]} 40. Rf2 {[%emt 0:00:37]} Qf5 {[%emt 0:00:27]} 41. cxb4 {[%emt 0:30:25]} Qb1+ {[%emt 0:30:26]} 42. Ka3 {[%emt 0:00:16]} Qa1+ {[%emt 0:00:24]} 43. Ra2 {[%emt 0:00:07]} axb4+ {[%emt 0:00:04]} 44. Kxb4 {[%emt 0:00:05]} Qxa2 {[%emt 0:00:27]} 0-1

[Event "8. Arber-Schachopen 2019"]
[Site "Bodenmais"]
[Date "2019.07.30"]
[Round "4.5"]
[White "Peng, Li Min"]
[Black "Pohl-Kuemmel, Jens-Uwe"]
[Result "1-0"]
[ECO "B00"]
[WhiteElo "2466"]
[BlackElo "2288"]
[Annotator "ChessBase"]
[PlyCount "89"]
[EventDate "2019.07.27"]
[EventCountry "GER"]
[SourceTitle "playchess.com"]
[Source "ChessBase"]
[SourceQuality "1"]
[TimeControl "40/5400+30:1800+30"]

1. e4 {[%emt 0:00:00]} d6 {[%emt 0:00:00]} 2. d4 {[%emt 0:00:00]} g6 {[%emt 0:00:00]} 3. Bc4 {[%emt 0:00:04]} Bg7 {[%emt 0:00:09]} 4. Nf3 {[%emt 0:00:07]} Nf6 {[%emt 0:00:33]} 5. Qe2 {[%emt 0:00:07]} O-O {[%emt 0:00:47]} 6. O-O {[%emt 0:00:07]} c6 {[%emt 0:02:43]} 7. e5 {[%emt 0:00:07]} Nd5 {[%emt 0:03:05]} 8. h3 {[%emt 0:00:08]} a5 {[%emt 0:05:09]} 9. a4 {[%emt 0:00:06]} Na6 {[%emt 0:01:21]} 10. Nbd2 {[%emt 0:01:50]} Nac7 {[%emt 0:04:10]} 11. Ne4 {[%emt 0:01:44]} Kh8 {[%emt 0:09:13]} 12. Bd2 {[%emt 0:07:49]} f6 {[%emt 0:07:10]} 13. Rad1 {[%emt 0:00:08]} Be6 {[%emt 0:06:53]} 14. Bb3 {[%emt 0:01:59]} b5 {[%emt 0:04:36]} 15. Ra1 {[%emt 0:05:09]} b4 {[%emt 0:01:29]} 16. Rfe1 {[%emt 0:00:03]} Qd7 {[%emt 0:06:47]} 17. Rad1 {[%emt 0:06:05]} Bg8 {[%emt 0:03:21]} 18. Qd3 {[%emt 0:07:32]} Ne6 {[%emt 0:04:01]} 19. exd6 {[%emt 0:05:08]} exd6 {[%emt 0:00:31]} 20. c4 {[%emt 0:08:24]} bxc3 {[%emt 0:08:41]} 21. bxc3 {[%emt 0:00:37]} Nef4 {[%emt 0:00:54]} 22. Qc2 {[%emt 0:00:34]} Rab8 {[%emt 0:02:38]} 23. Rb1 {[%emt 0:00:28]} f5 {[%emt 0:01:15]} 24. Ng3 {[%emt 0:00:23]} Ne6 {[%emt 0:01:52]} 25. Nf1 {[%emt 0:01:58]} Nec7 {[%emt 0:00:53]} 26. Rb2 {[%emt 0:06:28]} Rb6 {[%emt 0:04:22]} 27. Reb1 {[%emt 0:00:49]} Rfb8 {[%emt 0:00:09]} 28. Ne3 {[%emt 0:05:36]} Nxe3 {[%emt 0:01:12]} 29. Bxe3 {[%emt 0:00:03]} Nd5 {[%emt 0:01:27]} 30. Bxd5 {[%emt 0:00:19]} Rxb2 {[%emt 0:00:13]} 31. Rxb2 {[%emt 0:00:01]} Rxb2 {[%emt 0:00:26]} 32. Qxb2 {[%emt 0:00:01]} Bxd5 {[%emt 0:00:15]} 33. Qb8+ {[%emt 0:00:11]} Bg8 {[%emt 0:00:05]} 34. Bf4 {[%emt 0:00:32]} c5 {[%emt 0:00:45]} 35. Bxd6 {[%emt 0:04:47]} cxd4 {[%emt 0:00:07]} 36. Ne5 {[%emt 0:00:17]} Qe6 {[%emt 0:01:00]} 37. cxd4 {[%emt 0:00:07]} Bf6 {[%emt 0:04:30]} 38. Nf3 {[%emt 0:02:27]} h6 {[%emt 0:02:21]} 39. Be5 {[%emt 0:00:28]} Kg7 {[%emt 0:01:20]} 40. Qc7+ {[%emt 0:00:48]} Bf7 {[%emt 0:00:33]} 41. Qxa5 {[%emt 0:30:22]} Bxe5 {[%emt 0:30:13]} 42. Nxe5 {[%emt 0:00:37]} Be8 {[%emt 0:00:14]} 43. Qc7+ {[%emt 0:00:13]} Kf6 {[%emt 0:00:14]} 44. a5 {[%emt 0:00:25]} g5 {[%emt 0:00:37]} 45. Qh7 {[%emt 0:00:19]} 1-0

[Event "8. Arber-Schachopen 2019"]
[Site "Bodenmais"]
[Date "2019.07.30"]
[Round "4.6"]
[White "Kneutgen, Alexander"]
[Black "Bensch, Patrick"]
[Result "1/2-1/2"]
[ECO "A05"]
[WhiteElo "1920"]
[BlackElo "2197"]
[Annotator "NA"]
[PlyCount "88"]
[EventDate "2019.07.27"]
[EventCountry "GER"]
[SourceTitle "playchess.com"]
[Source "ChessBase"]
[SourceQuality "1"]
[TimeControl "40/5400+30:1800+30"]

1. Nf3 {[%emt 0:00:00]} Nf6 {[%emt 0:05:02]} 2. g3 {[%emt 0:00:00]} g6 {[%emt 0:00:21]} 3. Bg2 {[%emt 0:00:01]} Bg7 {[%emt 0:00:25]} 4. O-O {[%emt 0:00:18]} d5 {[%emt 0:00:38]} 5. d3 {[%emt 0:00:56]} O-O {[%emt 0:00:40]} 6. Nbd2 {[%emt 0:00:22]} c5 {[%emt 0:01:57]} 7. e4 {[%emt 0:01:52]} Nc6 {[%emt 0:01:00]} 8. c3 {[%emt 0:03:27]} e5 {[%emt 0:05:24]} 9. a3 {[%emt 0:04:11] A08: King's Indian Attack} (9. Re1 d4 10. Nc4 Re8 11. a4 Bf8 12. Bd2 Nd7 13. cxd4 cxd4 14. a5 Qf6 15. Rf1 Rb8 16. Ne1 b5 17. axb6 Nxb6 {½-½ (48) Maghsoodloo,P (2636)-Jumabayev,R (2594) Hamedan 2018}) 9... b6 {[%emt 0:08:56]} 10. Re1 {[%emt 0:07:55]} Bb7 $146 {[%emt 0:08:25]} ({Predecessor:} 10... a5 11. exd5 Nxd5 12. c4 Nc7 13. Qe2 Bf5 14. Ne4 Qd7 15. Be3 Rad8 16. Rad1 Bg4 17. Qf1 {0-1 (38) Balbalosa,J (1768)-Klasan,V (2401) Baku 2016}) 11. Qe2 {[%emt 0:08:21]} Re8 {[%emt 0:03:09]} 12. exd5 {[%emt 0:15:16]} Nxd5 {[%emt 0:00:17]} 13. Nc4 {[%emt 0:02:19]} b5 {[%emt 0:03:23]} 14. Ne3 {[%emt 0:04:19]} Nf4 {[%emt 0:08:37]} 15. gxf4 {[%emt 0:02:40]} exf4 {[%emt 0:00:03]} 16. Qf1 {[%emt 0:01:03]} fxe3 {[%emt 0:00:22]} 17. Bxe3 {[%emt 0:00:24]} Ne5 {[%emt 0:19:20]} 18. Nxe5 {[%emt 0:03:19]} Bxg2 {[%emt 0:00:03]} 19. Qxg2 {[%emt 0:00:29]} Rxe5 {[%emt 0:00:35]} 20. d4 {[%emt 0:07:20]} cxd4 {[%emt 0:00:26]} 21. Bxd4 {[%emt 0:01:31]} Rg5 {[%emt 0:07:19]} 22. Re8+ {[%emt 0:00:22]} Qxe8 {[%emt 0:00:11]} 23. Qxg5 {[%emt 0:00:09]} h6 {[%emt 0:06:38]} 24. Qe3 {[%emt 0:04:41]} Bxd4 {[%emt 0:00:30]} 25. cxd4 {[%emt 0:01:17]} Rd8 {[%emt 0:04:04]} 26. Qxe8+ {[%emt 0:05:40]} Rxe8 {[%emt 0:00:03]} 27. Rc1 {[%emt 0:00:59]} Re2 {[%emt 0:06:29]} 28. Rc7 {[%emt 0:01:01]} a5 {[%emt 0:00:48]} 29. b3 {[%emt 0:05:07]} Rb2 $15 {[%emt 0:02:31]} 30. Ra7 {[%emt 0:00:54]} Rxb3 {[%emt 0:00:16]} 31. Rxa5 {[%emt 0:00:35]} Kg7 {[%emt 0:00:11]} 32. Kg2 {[%emt 0:01:11]} Kf6 {[%emt 0:00:21]} 33. a4 {[%emt 0:05:11]} bxa4 {[%emt 0:02:00]} 34. Rxa4 {[%emt 0:00:10]} Rd3 {[%emt 0:01:09]} 35. h4 {[%emt 0:01:31]} h5 {[%emt 0:00:51]} 36. f3 {[%emt 0:00:26]} Ke6 {[%emt 0:00:54]} 37. Kg3 {[%emt 0:00:39]} Kd5 {[%emt 0:02:03]} 38. Ra7 {[%emt 0:01:31]} Ke6 {[%emt 0:00:59]} 39. Ra6+ {[%emt 0:00:48]} Kd5 {[%emt 0:00:24]} 40. Ra7 {[%emt 0:00:11]} Rxd4 {[%emt 0:01:42]} 41. Rxf7 {[%emt 0:30:22]} Ke5 {[%emt 0:30:46]} 42. Re7+ {[%emt 0:01:56]} Kf5 {[%emt 0:00:51]} 43. Rf7+ {[%emt 0:00:12]} Ke5 {[%emt 0:00:21]} 44. Re7+ {[%emt 0:00:10]} Kf5 {[%emt 0:00:42]} 1/2-1/2